lending/lending_fUSD_20241025
["ID","MTS","AMOUNT","RATE_DAILY","PERIOD"]
[340796648,1729848632365,-4778.05781165,0.00049,2]
[340796649,1729848632378,-758.7531811,0.00049,2]
[340796650,1729848632388,-156.67,0.00050201,120]
[340796651,1729848632399,-250.0,0.00050255,120]
[340796652,1729848632409,-250.0,0.00050356,120]
[340796653,1729848632419,-200.0,0.00050407,2]
[340796654,1729848632428,-163.61,0.00050411,2]
[340796655,1729848632438,-150.85,0.00050427,2]
[340796656,1729848632448,-500.0,0.00050453,2]
[340796658,1729848632458,-190.48,0.00050487,120]
[340796660,1729848632467,-800.0,0.00050497,120]
[340796662,1729848632477,-506.94,0.0005052,7]
[340796664,1729848632487,-364.6,0.00050602,2]
[340796666,1729848632498,-200.0,0.00050639,2]
[340796667,1729848632508,-654.22515876,0.00050658,2]
[340796668,1729848632521,-42.73484124,0.00050658,2]
[340796669,1729848632532,-252.60016136,0.000512,120]
[340796670,1729848632542,-420.85374406,0.000513,3]
[340796671,1729848632555,-79.14625594,0.000513,3]
[340796672,1729848632567,-1153.23,0.00051367,2]
[340796673,1729848632576,-494.00413056,0.000515,2]
[340796674,1729848632586,-250.0,0.00051516,120]
[340796675,1729848632596,-258.9,0.00051577,120]
[340796676,1729848632607,-200.0,0.00051612,120]
[340796677,1729848632617,-324.64999175,0.00051621,2]
[340796678,1729848632630,-177.44000825,0.00051621,2]
[340796679,1729848632640,-440.45,0.0005189,10]
[340796680,1729848632650,-367.05,0.0005189,10]
[340796681,1729848632660,-785.21613488,0.000519,31]
[340796682,1729848632676,-1000.0,0.00052,60]
[340796683,1729848632686,-3082.87394163,0.0005228,2]
[340796684,1729848632699,-2261.75,0.0005228,2]
[340796685,1729848632716,-571.51368121,0.0005228,2]
[340796686,1729848638197,-1000.0,0.000428,2]
[340796687,1729848638207,-10128.02916249,0.0005228,2]
[340796688,1729848638218,-1817.81739251,0.0005238,110]
[340796689,1729848638228,-160.52484839,0.00052405,30]
[340796690,1729848638242,-1177.35531383,0.00052405,120]
[340796691,1729848638256,-500.0,0.000525,10]
[340796692,1729848638266,-162.47,0.00052519,2]
[340796693,1729848638276,-67134.4269,0.00052529,7]
[340796694,1729848638286,-150.0,0.00052556,7]
[340796695,1729848638297,-150.0,0.00052558,7]
[340796696,1729848638307,-150.0,0.00052569,7]
[340796697,1729848638318,-150.49101481,0.00052577,120]
[340796698,1729848638329,-333.78077488,0.0005259,2]
[340796699,1729848638339,-162.47,0.0005259,2]
[340796700,1729848638349,-2095.3129,0.0005259,2]
[340796701,1729848638359,-215.2255,0.0005259,2]
[340796702,1729848638368,-150.0,0.00052593,7]
[340796703,1729848638378,-150.0,0.00052595,7]
[340796704,1729848638387,-150.0,0.00052596,7]
[340796705,1729848638397,-1091.4717,0.000526,2]
[340796706,1729848638407,-490.556,0.000526,96]
[340796707,1729848638417,-166.663,0.000526,96]
[340796708,1729848638427,-1098.9319,0.000526,2]
[340796709,1729848638437,-791.7128,0.000526,2]
[340796710,1729848638446,-500.0,0.000526,15]
[340796711,1729848638455,-505.2154,0.000526,2]
[340796712,1729848638465,-1009.6479,0.000526,2]
[340796713,1729848638475,-16013.90538917,0.000526,120]
[340796714,1729848638484,-150.0,0.00052602,7]
[340796715,1729848638494,-150.0,0.00052604,7]
[340796716,1729848638503,-150.0,0.00052611,7]
[340796717,1729848638516,-150.0,0.00052616,7]
[340796718,1729848638525,-150.0,0.00052617,7]
[340796719,1729848638535,-150.0,0.00052636,7]
[340796720,1729848638545,-150.0,0.0005264,7]
[340796721,1729848638554,-150.0,0.00052642,7]
[340796722,1729848638565,-150.0,0.00052656,7]
[340796723,1729848638575,-150.0,0.00052657,7]
[340796724,1729848638584,-150.0,0.00052671,7]
[340796725,1729848638594,-150.0,0.00052675,7]
[340796726,1729848638603,-2566.789,0.0005268,110]
[340796727,1729848638613,-162.47,0.0005268,2]
[340796728,1729848638622,-150.0,0.00052688,7]
[340796729,1729848638632,-162.47,0.00052689,2]
[340796730,1729848638642,-106725.347662,0.0005269,11]
[340796731,1729848638652,-154.61,0.0005269,120]
[340796732,1729848638661,-943.4507,0.0005269,2]
[340796734,1729848638671,-456.3093,0.0005269,2]
[340796735,1729848638682,-150.0,0.00052691,7]
[340796736,1729848638692,-150.0,0.00052693,7]
[340796737,1729848638703,-3432.71758544,0.00052699,120]
[340796738,1729848638712,-188.96109252,0.00052699,31]
[340796739,1729848638723,-565.90801557,0.00052699,120]
[340796740,1729848638732,-3641.70745291,0.00052699,120]
[340796741,1729848638742,-255.6139,0.000527,2]
[340796743,1729848638752,-192732.2936,0.000527,2]
[340796745,1729848638763,-482.9505,0.000527,2]
[340796747,1729848638772,-14315.9877,0.000527,2]
[340796749,1729848638782,-47824.14889068,0.000527,2]
[340796753,1729848638804,-500.0,0.00052279,120]
[340796755,1729848638815,-51.09530478,0.00052599,120]
[340796757,1729848638830,-448.90469522,0.00052599,120]
[340796759,1729848638840,-52175.85110932,0.000527,2]
[340796761,1729848638850,-1000.0,0.000527,2]
[340796762,1729848638859,-5686.5238,0.000527,2]
[340796763,1729848638870,-150.0,0.00052713,7]
[340796764,1729848638879,-150.0,0.00052714,7]
[340796765,1729848638888,-150.0,0.0005273,7]
[340796766,1729848638899,-150.0,0.0005273,7]
[340796767,1729848638908,-150.0,0.00052746,7]
[340796768,1729848638918,-9452.02139917,0.0005275,120]
[340796769,1729848638928,-150.0,0.00052751,7]
[340796770,1729848638937,-150.0,0.00052751,7]
[340796771,1729848638947,-150.0,0.00052767,7]
[340796772,1729848638957,-35639.2352222,0.0005279,11]
[340796773,1729848638966,-171.5400952,0.00052798,2]
[340796774,1729848638976,-3089.4181818,0.00052798,2]
[340796775,1729848638985,-543.6543413,0.00052798,2]
[340796776,1729848638995,-205.84811429,0.00052798,2]
[340796777,1729848639005,-690.4166891,0.00052798,2]
[340796778,1729848639015,-694.1193708,0.00052798,2]
[340796779,1729848639025,-198823.49584675,0.000528,120]
[340796780,1729848639034,-13538.98995501,0.000528,30]
[340796781,1729848639044,-158.94284,0.000528,120]
[340796782,1729848639054,-151.0,0.000528,120]
[340796783,1729848639075,-524.185288,0.000528,120]
[340796784,1729848639091,-524.185288,0.000528,120]
[340796785,1729848639101,-151.0,0.000528,120]
[340796786,1729848639112,-801.738577,0.000528,120]
[340796787,1729848639123,-801.738577,0.000528,120]
[340796788,1729848639133,-801.738577,0.000528,120]
[340796789,1729848639144,-801.738577,0.000528,120]
[340796790,1729848639156,-2969.93626852,0.0005282,11]
[340796791,1729848639167,-1269.0818299,0.0005283,2]
[340796792,1729848639178,-150.0,0.00052866,120]
[340796793,1729848639188,-8005.40084255,0.0005289,30]
[340796794,1729848639199,-167.0,0.00052894,2]
[340796795,1729848639209,-538.63496429,0.000529,120]
[340796796,1729848639220,-11879.7450741,0.0005299,11]
[340796797,1729848639231,-5939.87253704,0.0005299,11]
[340796798,1729848639242,-50000.0,0.00053,53]
[340796799,1729848639256,-8339.69969421,0.00053,62]
[340796800,1729848639267,-6679.26249325,0.00053,70]
[340796801,1729848639277,-570.87604152,0.00053,2]
[340796802,1729848639287,-1000.0,0.00053,120]
[340796803,1729848639298,-5238.14842825,0.00053,7]
[340796804,1729848639308,-352.17,0.00053,120]
[340796805,1729848639320,-117375.91411931,0.00053,120]
[340796806,1729848639332,-801.738577,0.00053,120]
[340796807,1729848639343,-801.738577,0.00053,120]
[340796808,1729848639354,-442.51462043,0.0005331,2]
[340796809,1729848639364,-333.78077474,0.00053326,2]
[340796810,1729848639375,-160.11,0.00053756,2]
[340796811,1729848639385,-217.0,0.0005389,2]
[340796812,1729848639394,-2969.93626852,0.00053989,11]
[340796813,1729848639404,-20789.5538796,0.0005399,11]
[340796814,1729848639415,-2969.93626852,0.0005399,11]
[340796815,1729848639425,-50000.0,0.00054,44]
[340796816,1729848639435,-40234.91156834,0.00054,54]
[340796838,1729848640238,-361.52,0.00049398,2]
[340796839,1729848640253,-190.65048059,0.00051662,2]
[340796840,1729848640301,-170.86951941,0.00051662,2]
[340796841,1729848640312,-500.0,0.00052279,120]
[340796842,1729848640321,-557.92886508,0.00052553,120]
[340796843,1729848640333,-500.0,0.00052699,120]
[340796844,1729848640343,-197.95834797,0.00052873,120]
[340796845,1729848640352,-361.52,0.00053926,2]
[340796846,1729848640361,-9765.08843166,0.00054,54]
[340796847,1729848640371,-299.0,0.00054,7]
[340796848,1729848640381,-5645.82,0.00054,30]
[340796849,1729848640391,-1000.0,0.00054,120]
[340796850,1729848640401,-151.0,0.00054,120]
[340796851,1729848640411,-151.0,0.00054,120]
[340796852,1729848640420,-255.01999,0.00054,120]
[340796853,1729848640430,-151.0,0.00054,120]
[340796854,1729848640439,-151.0,0.00054,120]
[340796855,1729848640449,-151.0,0.00054,120]
[340796856,1729848640458,-186.111318,0.00054,120]
[340796857,1729848640472,-151.0,0.00054,120]
[340796858,1729848640482,-196.420258,0.00054,120]
[340796859,1729848640491,-151.0,0.00054,120]
[340796860,1729848640501,-158.276989,0.00054,120]
[340796861,1729848640511,-151.0,0.00054,120]
[340796862,1729848640520,-151.0,0.00054,120]
[340796863,1729848640530,-151.0,0.00054,120]
[340796864,1729848640539,-151.0,0.00054,120]
[340796865,1729848640549,-151.0,0.00054,120]
[340796866,1729848640558,-151.0,0.00054,120]
[340796867,1729848640568,-151.0,0.00054,120]
[340796868,1729848640578,-524.185288,0.00054,120]
[340796869,1729848640587,-524.185288,0.00054,120]
[340796870,1729848640596,-333.78077474,0.00054062,2]
[340796871,1729848640606,-150.0,0.00054236,120]
[340796872,1729848640615,-5003.87263,0.00054384,30]
[340796873,1729848640625,-1900.0,0.000545,120]
[340796874,1729848640635,-5939.87253704,0.0005469,11]
[340796876,1729848640645,-15439.5701882,0.000547,30]
[340796878,1729848640654,-7474.90010067,0.000547,2]
[340796880,1729848640663,-2969.93626852,0.00054746,11]
[340796881,1729848640673,-7959.65,0.0005475,35]
[340796882,1729848640683,-801.738577,0.0005475,120]
[340796883,1729848640692,-801.738577,0.0005475,120]
[340796884,1729848640701,-171.5400952,0.00054756,2]
[340796886,1729848640711,-3089.4181818,0.00054756,2]
[340796889,1729848640721,-543.6543413,0.00054756,2]
[340796890,1729848640732,-690.4166891,0.00054756,2]
[340796892,1729848640741,-1073.8384715,0.00054756,2]
[340796893,1729848640755,-171.5400952,0.00054762,2]
[340796894,1729848640764,-3089.4181818,0.00054762,2]
[340796896,1729848640774,-543.6543413,0.00054762,2]
[340796898,1729848640784,-690.4166891,0.00054762,2]
[340796900,1729848640793,-690.4166891,0.00054762,2]
[340796902,1729848640803,-878.595113,0.00054762,2]
[340796904,1729848640813,-683.3517546,0.00054762,2]
[340796906,1729848640826,-35639.2352222,0.00054784,11]
[340796908,1729848640836,-167.602144,0.00054784,120]
[340796909,1729848640846,-440.20582638,0.00054793,120]
[340796910,1729848640856,-207.58654009,0.00054793,120]
[340796911,1729848640865,-648.69852237,0.00054793,2]
[340796912,1729848640875,-503.70516077,0.00054794,120]
[340796913,1729848640884,-504.0018294,0.00054794,120]
[340796914,1729848640894,-503.83943314,0.00054794,120]
[340796915,1729848640904,-500.0,0.00054794,120]
[340796916,1729848640914,-323.01405588,0.00054794,120]
[340796917,1729848640923,-512.12955425,0.00054794,120]
[340796918,1729848640933,-500.0,0.00054794,120]
[340796919,1729848640943,-500.0,0.00054794,120]
[340796920,1729848640954,-534.66251568,0.00054794,120]
[340796921,1729848640964,-559.03818265,0.00054794,120]
[340796922,1729848640974,-500.0,0.00054794,120]
[340796923,1729848640983,-500.0,0.00054794,120]
[340796924,1729848640993,-500.0,0.00054794,120]
[340796925,1729848641003,-517.31083936,0.00054794,120]
[340796926,1729848641013,-500.0,0.00054794,120]
[340796927,1729848641024,-517.01039373,0.00054794,120]
[340796928,1729848641034,-500.0,0.00054794,120]
[340796929,1729848641044,-500.0,0.00054794,120]
[340796930,1729848641053,-515.51210999,0.00054794,120]
[340796931,1729848641062,-500.0,0.00054794,120]
[340796932,1729848641075,-500.0,0.00054794,120]
[340796933,1729848641084,-150.27964295,0.00054794,120]
[340796934,1729848641094,-265.50759181,0.00054794,120]
[340796935,1729848641104,-514.77099137,0.00054794,120]
[340796936,1729848641114,-503.29028419,0.00054794,120]
[340796937,1729848641123,-500.0,0.00054794,120]
[340796938,1729848641132,-506.1118501,0.00054794,120]
[340796939,1729848641142,-500.0,0.00054794,120]
[340796940,1729848641151,-513.39366426,0.00054794,120]
[340796941,1729848641161,-500.0,0.00054794,120]
[340796942,1729848641171,-500.0,0.00054794,120]
[340796943,1729848641180,-500.0,0.00054794,120]
[340796944,1729848641189,-513.31889473,0.00054794,120]
[340796945,1729848641199,-512.71703111,0.00054794,120]
[340796946,1729848641208,-506.81656682,0.00054794,120]
[340796947,1729848641218,-502.63875613,0.00054794,120]
[340796948,1729848641228,-502.87694421,0.00054794,120]
[340796949,1729848641237,-500.0,0.00054794,120]
[340796950,1729848641249,-500.0,0.00054794,120]
[340796951,1729848641262,-501.86451726,0.00054794,120]
[340796952,1729848641271,-500.0,0.00054794,120]
[340796953,1729848641281,-503.49121685,0.00054794,120]
[340796954,1729848641291,-503.33106563,0.00054794,120]
[340796955,1729848641300,-500.0,0.00054794,120]
[340796956,1729848641312,-500.0,0.00054794,120]
[340796957,1729848641322,-503.34398992,0.00054794,120]
[340796958,1729848641333,-501.94806243,0.00054794,120]
[340796959,1729848641344,-500.0,0.00054794,120]
[340796960,1729848641354,-503.14617721,0.00054794,120]
[340796961,1729848641367,-624.97,0.00054794,120]
[340796962,1729848641376,-511.75548802,0.00054794,120]
[340796963,1729848641386,-503.4890538,0.00054794,120]
[340796964,1729848641396,-502.40764986,0.00054794,120]
[340796965,1729848641405,-503.77911314,0.00054794,120]
[340796966,1729848641416,-500.0,0.00054794,120]
[340796967,1729848641426,-503.35832519,0.00054794,120]
[340796968,1729848641437,-503.88092962,0.00054794,120]
[340796969,1729848641449,-501.48619257,0.00054794,120]
[340796970,1729848641459,-500.0,0.00054794,120]
[340796971,1729848641469,-1382.85,0.00054794,120]
[340796972,1729848641479,-500.0,0.00054794,120]
[340796973,1729848641488,-458.35715858,0.00054794,120]
[340796974,1729848641498,-500.0,0.00054794,120]
[340796975,1729848641507,-500.0,0.00054794,120]
[340796976,1729848641518,-513.54198386,0.00054794,120]
[340796977,1729848641529,-502.18992422,0.00054794,120]
[340796978,1729848641539,-505.46943158,0.00054794,120]
[340796979,1729848641548,-500.0,0.00054794,120]
[340796980,1729848641558,-502.53729583,0.00054794,120]
[340796981,1729848641568,-500.0,0.00054794,120]
[340796982,1729848641579,-517.72417531,0.00054794,120]
[340796983,1729848641589,-500.0,0.00054794,120]
[340796984,1729848641599,-500.0,0.00054794,120]
[340796985,1729848641609,-500.0,0.00054794,120]
[340796986,1729848641619,-500.0,0.00054794,120]
[340796987,1729848641628,-518.55452446,0.00054794,120]
[340796988,1729848641638,-530.59983204,0.00054794,120]
[340796989,1729848641648,-500.0,0.00054794,120]
[340796990,1729848641658,-503.6063489,0.00054794,120]
[340796991,1729848641668,-500.0,0.00054794,120]
[340796992,1729848641678,-517.02703354,0.00054794,120]
[340796993,1729848641688,-504.03263591,0.00054794,120]
[340796994,1729848641698,-501.24989117,0.00054794,120]
[340796995,1729848641707,-500.0,0.00054794,120]
[340796996,1729848641717,-504.47383303,0.00054794,120]
[340796997,1729848641726,-345.55323707,0.00054794,120]
[340796998,1729848641736,-503.17672876,0.00054794,120]
[340796999,1729848641748,-504.85049415,0.00054794,120]
[340797000,1729848641759,-503.04325562,0.00054794,120]
[340797001,1729848641769,-501.23288091,0.00054794,120]
[340797002,1729848641778,-192.37150421,0.00054794,120]
[340797003,1729848641789,-500.0,0.00054794,120]
[340797004,1729848641800,-508.01010296,0.00054794,120]
[340797005,1729848641810,-511.23055572,0.00054794,120]
[340797006,1729848641821,-550.11791957,0.00054794,120]
[340797007,1729848641931,-500.0,0.00054794,120]
[340797008,1729848641941,-500.0,0.00054794,120]
[340797009,1729848641951,-295.4712501,0.00054794,120]
[340797010,1729848641960,-500.0,0.00054794,120]
[340797011,1729848641969,-500.0,0.00054794,120]
[340797012,1729848641979,-500.0,0.00054794,120]
[340797013,1729848641989,-517.67568124,0.00054794,120]
[340797014,1729848641998,-539.37701894,0.00054794,120]
[340797015,1729848642008,-503.54176488,0.00054794,120]
[340797016,1729848642018,-500.0,0.00054794,120]
[340797017,1729848642028,-500.0,0.00054794,120]
[340797018,1729848642037,-500.0,0.00054794,120]
[340797019,1729848642047,-502.92353765,0.00054794,120]
[340797020,1729848642056,-500.0,0.00054794,120]
[340797021,1729848642066,-500.0,0.00054794,120]
[340797022,1729848642076,-586.22019402,0.00054794,120]
[340797023,1729848642086,-500.0,0.00054794,120]
[340797024,1729848642095,-503.12711252,0.00054794,120]
[340797025,1729848642106,-500.0,0.00054794,120]
[340797026,1729848642117,-500.0,0.00054794,120]
[340797027,1729848642128,-503.55543447,0.00054794,120]
[340797028,1729848642137,-500.0,0.00054794,120]
[340797029,1729848642148,-502.698567,0.00054794,120]
[340797030,1729848642158,-500.0,0.00054794,120]
[340797031,1729848642167,-502.22943784,0.00054794,120]
[340797032,1729848642177,-500.0,0.00054794,120]
[340797033,1729848642187,-505.88125881,0.00054794,120]
[340797034,1729848642197,-503.06180578,0.00054794,120]
[340797035,1729848642207,-600.35130554,0.00054794,120]
[340797036,1729848642216,-508.45689008,0.00054794,120]
[340797037,1729848642226,-502.50663431,0.00054794,120]
[340797038,1729848642235,-500.0,0.00054794,120]
[340797039,1729848642246,-500.0,0.00054794,120]
[340797040,1729848642259,-500.0,0.00054794,120]
[340797041,1729848642269,-500.0,0.00054794,120]
[340797042,1729848642278,-500.0,0.00054794,120]
[340797043,1729848642287,-500.0,0.00054794,120]
[340797044,1729848642299,-500.0,0.00054794,120]
[340797045,1729848642308,-500.0,0.00054794,120]
[340797046,1729848642318,-500.0,0.00054794,120]
[340797047,1729848642329,-615.59452794,0.00054794,120]
[340797048,1729848642338,-500.0,0.00054794,120]
[340797049,1729848642348,-500.0,0.00054794,120]
[340797050,1729848642357,-500.0,0.00054794,120]
[340797051,1729848642367,-500.0,0.00054794,120]
[340797052,1729848642376,-505.32760807,0.00054794,120]
[340797053,1729848642386,-505.93810844,0.00054794,120]
[340797054,1729848642397,-576.3796344,0.00054794,120]
[340797055,1729848642407,-500.0,0.00054794,120]
[340797056,1729848642417,-562.35716374,0.00054794,120]
[340797057,1729848642426,-534.27461023,0.00054794,120]
[340797058,1729848642436,-506.24882677,0.00054794,120]
[340797059,1729848642446,-645.65056362,0.00054794,120]
[340797060,1729848642455,-500.0,0.00054794,120]
[340797061,1729848642465,-500.0,0.00054794,120]
[340797062,1729848642474,-531.09038184,0.00054794,120]
[340797063,1729848642483,-500.0,0.00054794,120]
[340797064,1729848642493,-500.0,0.00054794,120]
[340797065,1729848642502,-549.49812117,0.00054794,120]
[340797066,1729848642511,-500.0,0.00054794,120]
[340797067,1729848642521,-550.83994218,0.00054794,120]
[340797068,1729848642530,-500.0,0.00054794,120]
[340797069,1729848642540,-500.0,0.00054794,55]
[340797070,1729848642550,-502.61970584,0.00054794,120]
[340797071,1729848642560,-500.0,0.00054794,120]
[340797072,1729848642571,-500.0,0.00054794,120]
[340797073,1729848642580,-500.0,0.00054794,120]
[340797074,1729848642590,-242.37047794,0.00054794,120]
[340797075,1729848642600,-544.85990469,0.00054794,120]
[340797076,1729848642609,-513.50675331,0.00054794,120]
[340797077,1729848642619,-566.61081159,0.00054794,120]
[340797078,1729848642628,-501.60129606,0.00054794,120]
[340797079,1729848642638,-500.0,0.00054794,120]
[340797080,1729848642647,-500.0,0.00054794,120]
[340797081,1729848642657,-500.0,0.00054794,120]
[340797082,1729848642667,-500.0,0.00054794,120]
[340797083,1729848642677,-201.77399327,0.00054794,120]
[340797084,1729848642687,-623.49007341,0.00054794,120]
[340797085,1729848642696,-500.0,0.00054794,120]
[340797086,1729848642706,-500.0,0.00054794,120]
[340797087,1729848642716,-506.97575387,0.00054794,120]
[340797088,1729848642726,-519.5690556,0.00054794,120]
[340797089,1729848642736,-515.07434024,0.00054794,120]
[340797090,1729848642747,-500.0,0.00054794,120]
[340797091,1729848642758,-504.91485739,0.00054794,120]
[340797092,1729848642769,-503.95698521,0.00054794,120]
[340797093,1729848642778,-503.11552804,0.00054794,120]
[340797094,1729848642788,-500.0,0.00054794,120]
[340797095,1729848642798,-508.36668616,0.00054794,120]
[340797096,1729848642808,-514.42534485,0.00054794,120]
[340797097,1729848642820,-500.0,0.00054794,120]
[340797098,1729848642830,-308.540407,0.00054794,120]
[340797099,1729848642841,-615.927499,0.00054794,120]
[340797100,1729848642850,-504.82347724,0.00054794,120]
[340797101,1729848642861,-508.53719596,0.00054794,120]
[340797102,1729848642871,-500.0,0.00054794,120]
[340797103,1729848642881,-275.87450098,0.00054794,120]
[340797104,1729848642890,-500.0,0.00054794,120]
[340797105,1729848642899,-535.98507585,0.00054794,120]
[340797106,1729848642910,-507.82520051,0.00054794,120]
[340797107,1729848642920,-509.59668195,0.00054794,120]
[340797108,1729848642930,-500.0,0.00054794,120]
[340797109,1729848642939,-500.0,0.00054794,120]
[340797110,1729848642950,-504.46393018,0.00054794,120]
[340797111,1729848642959,-500.0,0.00054794,120]
[340797112,1729848642969,-500.0,0.00054794,120]
[340797113,1729848642978,-511.68334145,0.00054794,120]
[340797114,1729848642988,-500.0,0.00054794,120]
[340797115,1729848642998,-513.27328483,0.00054794,120]
[340797117,1729848643007,-500.0,0.00054794,120]
[340797119,1729848643017,-501.57429576,0.00054794,120]
[340797121,1729848643027,-500.0,0.00054794,120]
[340797123,1729848643037,-500.0,0.00054794,120]
[340797124,1729848643048,-500.0,0.00054794,120]
[340797125,1729848643058,-500.0,0.00054794,120]
[340797126,1729848643068,-500.0,0.00054794,120]
[340797127,1729848643078,-500.0,0.00054794,120]
[340797128,1729848643087,-500.0,0.00054794,120]
[340797129,1729848643097,-500.0,0.00054794,120]
[340797130,1729848643107,-500.0,0.00054794,120]
[340797131,1729848643116,-500.0,0.00054794,120]
[340797133,1729848643126,-500.0,0.00054794,120]
[340797135,1729848643136,-500.0,0.00054794,120]
[340797137,1729848643145,-500.0,0.00054794,120]
[340797139,1729848643155,-500.0,0.00054794,120]
[340797140,1729848643164,-500.0,0.00054794,120]
[340797141,1729848643174,-500.0,0.00054794,120]
[340797142,1729848643184,-500.0,0.00054794,120]
[340797143,1729848643193,-500.0,0.00054794,120]
[340797144,1729848643203,-553.95303914,0.00054794,120]
[340797145,1729848643214,-500.0,0.00054794,120]
[340797146,1729848643223,-509.90160645,0.00054794,120]
[340797147,1729848643233,-500.0,0.00054794,120]
[340797148,1729848643243,-500.0,0.00054794,120]
[340797149,1729848643253,-500.0,0.00054794,120]
[340797150,1729848643261,-500.0,0.00054794,120]
[340797151,1729848643273,-500.0,0.00054794,120]
[340797152,1729848643282,-500.0,0.00054794,120]
[340797153,1729848643291,-500.0,0.00054794,120]
[340797154,1729848643300,-510.26661815,0.00054794,120]
[340797155,1729848643309,-500.0,0.00054794,120]
[340797156,1729848643320,-508.08100558,0.00054794,120]
[340797157,1729848643331,-511.58122221,0.00054794,120]
[340797158,1729848643340,-500.0,0.00054794,120]
[340797159,1729848643350,-546.74409679,0.00054794,120]
[340797160,1729848643360,-506.15715518,0.00054794,120]
[340797161,1729848643370,-525.33029134,0.00054794,120]
[340797162,1729848643379,-506.51535459,0.00054794,120]
[340797163,1729848643389,-1897.32,0.00054794,120]
[340797164,1729848643399,-507.71631989,0.00054794,120]
[340797165,1729848643409,-3156.74,0.00054794,120]
[340797166,1729848643516,-516.13607545,0.00054794,120]
[340797167,1729848643527,-505.38277086,0.00054794,120]
[340797168,1729848643537,-538.63359323,0.00054794,120]
[340797169,1729848643546,-558.40027072,0.00054794,120]
[340797171,1729848643555,-511.98696985,0.00054794,120]
[340797172,1729848643566,-537.3676274,0.00054794,120]
[340797173,1729848643580,-537.89045604,0.00054794,120]
[340797174,1729848643590,-513.9618579,0.00054794,120]
[340797175,1729848643600,-518.08570889,0.00054794,120]
[340797176,1729848643610,-506.23052518,0.00054794,120]
[340797177,1729848643619,-526.36679718,0.00054794,120]
[340797178,1729848643629,-513.58271651,0.00054794,120]
[340797179,1729848643639,-417.77931402,0.00054794,120]
[340797180,1729848643648,-500.0,0.00054794,120]
[340797181,1729848643658,-575.15610447,0.00054794,120]
[340797182,1729848643668,-503.83977818,0.00054794,120]
[340797183,1729848643678,-500.0,0.00054794,120]
[340797184,1729848643687,-507.6919473,0.00054794,120]
[340797185,1729848643697,-503.62006712,0.00054794,120]
[340797186,1729848643707,-506.9704961,0.00054794,120]
[340797187,1729848643717,-510.38163584,0.00054794,120]
[340797188,1729848643726,-500.0,0.00054794,120]
[340797189,1729848643736,-298.6818661,0.00054794,120]
[340797190,1729848643745,-507.72780895,0.00054794,120]
[340797191,1729848643755,-515.46139762,0.00054794,120]
[340797192,1729848643764,-500.0,0.00054794,120]
[340797193,1729848643773,-450.86716,0.00054794,7]
[340797194,1729848643784,-506.98400062,0.00054794,120]
[340797195,1729848643794,-519.36463252,0.00054794,120]
[340797196,1729848643803,-506.41225723,0.00054794,120]
[340797197,1729848643813,-624.0,0.00054794,120]
[340797198,1729848643824,-564.20563384,0.00054794,120]
[340797199,1729848643834,-505.62015032,0.00054794,120]
[340797200,1729848643843,-500.0,0.00054794,120]
[340797201,1729848643853,-510.26545991,0.00054794,120]
[340797202,1729848643862,-500.0,0.00054794,5]
[340797203,1729848643872,-643.71719029,0.00054794,120]
[340797204,1729848643882,-500.0,0.00054794,120]
[340797205,1729848643892,-547.75493049,0.00054794,120]
[340797206,1729848643902,-500.0,0.00054794,120]
[340797207,1729848643911,-619.39479457,0.00054794,120]
[340797208,1729848643921,-500.0,0.00054794,120]